Cogmind - Beta 17 @@@ ROGUE MODE // 2026.07.23 @ 21:31:37 Player: Cinder Result: Destroyed by R7-KVU(f) with Centrium Greatsword Performance ------------- Evolutions (3) 1500 Regions Visited (8) 1600 Robots Destroyed (51) 255 Value Destroyed (1568) 1568 Prototype IDs (28) 560 Alien Tech Used (0) 0 Bonus (7400) 7400 TOTAL SCORE: 12883 Bonus ------- Prayed to X0-1V1 5000 Major X0-1V1 Interference 2100 Aligned with FarCom 300 Cogmind --------- Core Integrity 0/580 Matter 1188/1300 Energy 50/100 System Corruption 9% Temperature Cool (0) Movement Core (50) Location -7/Lower Caves Parts ------- > --- POWER (1) -------- (None) > --- PROPULSION (3) --- (None) > --- UTILITY (6) ------ (None) > --- WEAPON (3) ------- (None) > --- INVENTORY (5) ---- Heat Sink Particle Gun Heavy Laser Light EM Pulse Cannon Battle Rifle Peak State ------------ > --- POWER ------------ Micro Nuclear Core > --- PROPULSION ------- Wheel Compact Wheel Compact Wheel > --- UTILITY ---------- Huge Storage Unit Advanced Visual Processing Unit Seismic Detector Improved Light Armor Plating Hacking Suite X0-1V1's Piety Tracker > --- WEAPON ----------- Heavy Particle Gun AWS/Thermal > --- INVENTORY -------- Ion Engine Deuterium Engine Wheel Wheel Wheel Wheel Compact Wheel Heat Sink Heat Sink Large Storage Unit High-capacity Battery High-capacity Matter Pod Improved Light Armor Plating Chronowheel EM Shotgun Improved EM Shotgun Shock Rifle Shock Rifle Shock Rifle Improved EM Pulse Cannon YOLO Cannon Rocket Launcher Rocket Launcher [Rating: 58] Favorites ----------- Power Ion Engine Engine Ion Engine Power Core Micro Nuclear Core Propulsion Wheel Wheel Wheel Utility X0-1V1's Piety Tracker Device X0-1V1's Piety Tracker Storage Huge Storage Unit Processor Advanced Visual Processing Unit Hackware Hacking Suite Protection Improved Light Armor Plating Weapon EM Shotgun Energy Gun EM Shotgun Energy Cannon YOLO Cannon Ballistic Gun Assault Rifle Launcher Rocket Launcher Impact Weapon Great Maul Build | -11 -10 -10 -10 -9 -8 -7 -7 -7 ------- Run | Yrd Mat Min Exi Min Mat Fac Low Low Slots Evolved 6 | . . . . . 4 2 . . Power . | . . . . . . . . . Propulsion 1 | . . . . . 1 . . . Utility 4 | . . . . . 3 1 . . Weapon 1 | . . . . . . 1 . . Parts Attached 60 | 6 13 1 2 . 6 11 12 9 Power 6 | 1 1 1 . . . 1 1 1 Engine 4 | 1 1 1 . . . . 1 . Core 2 | . . . . . . 1 . 1 Reactor . | . . . . . . . . . Propulsion 12 | 2 3 . . . 1 1 3 2 Treads . | . . . . . . . . . Leg . | . . . . . . . . . Wheel 12 | 2 3 . . . 1 1 3 2 Hover . | . . . . . . . . . Flight . | . . . . . . . . . Utility 17 | 1 4 . . . 5 2 3 2 Device 7 | . 3 . . . 2 . 1 1 Storage 3 | 1 1 . . . 1 . . . Processor 1 | . . . . . . 1 . . Hackware 1 | . . . . . 1 . . . Protection 5 | . . . . . 1 1 2 1 Artifact . | . . . . . . . . . Weapon 25 | 2 5 . 2 . . 7 5 4 Energy Gun 17 | 2 5 . 1 . . 5 3 1 Energy Cannon 3 | . . . 1 . . 2 . . Ballistic Gun 2 | . . . . . . . . 2 Ballistic Cannon . | . . . . . . . . . Launcher 2 | . . . . . . . 2 . Special Weapon . | . . . . . . . . . Impact Weapon 1 | . . . . . . . . 1 Slashing Weapon . | . . . . . . . . . Piercing Weapon . | . . . . . . . . . Special Melee Weapon . | . . . . . . . . . Unidentified Prototypes 5 | . 1 . . . . 4 . . Corrupted Parts 2 | . 1 . . . . . . 1 System Corruption 11 | . 2 . . . . . . 9 Parts Lost 34 | . 5 1 . . . 2 13 13 Power 4 | . 1 1 . . . . 1 1 Propulsion 11 | . 3 . . . . 1 3 4 Utility 10 | . 1 . . . . . 5 4 Weapon 9 | . . . . . . 1 4 4 Highest Loss Streak 10 | . 4 1 . . . 1 5 10 To Critical Strikes . | . . . . . . . . . Average Backups 13 | 1 7 14 14 14 15 21 15 11 Power 1 | . 1 1 1 1 1 2 1 . Propulsion 2 | . . 2 3 3 2 4 4 1 Utility 4 | . 1 3 3 3 4 6 6 5 Weapon 5 | . 4 8 7 6 6 7 4 2 Tool/Special . | . . . . . . . . . Unused Backups 20 | . 6 . . . . 3 1 10 Power 3 | . 1 . . . . 1 . 1 Propulsion . | . . . . . . . . . Utility 7 | . 1 . . . . . . 6 Weapon 9 | . 4 . . . . 2 . 3 Tool/Special 1 | . . . . . . . 1 . Average Slot Usage (%) 92 | . 90 98 96 85 81 91 96 89 Engine 9 | . 13 13 14 14 9 4 2 2 Core 1 | . . . . . . 2 4 4 Wheel 25 | . 27 28 28 28 27 22 21 19 Device 12 | . 8 14 14 14 17 15 9 12 Storage 10 | . 14 14 14 14 9 7 7 6 Processor 2 | . . . . . . 7 7 6 Hackware 3 | . . . . . 4 7 7 6 Protection 3 | . . . . . 4 7 11 6 Energy Gun 19 | . 26 27 22 1 9 14 21 6 Energy Cannon 1 | . . . 2 13 . . . 4 Peak Build Rating 58 | 6 23 23 41 41 45 58 57 40 Average Rating 30 | 4 9 22 27 40 42 52 38 33 On Entrance 28 | . 6 21 23 41 38 45 57 22 Avg Prop Armor Cover (%) . | . . . . . . . . . Naked Turns 3 | . . . . . . . . 3 Heaviest Build 107 | 13 32 32 44 44 98 102 107 106 Greatest Support 42 | 26 26 26 26 26 36 42 42 36 Greatest Overweight (x) 6 | . 6 1 1 1 2 3 4 4 Average Overweight (x) 1 | . . 1 1 1 1 2 2 2 Largest Inventory Capacity 25 | 8 15 15 15 15 25 25 25 25 Average Capacity 18 | 6 10 15 15 15 24 25 25 24 Most Carried 25 | 2 15 15 15 15 20 25 25 18 Average Carried 14 | 1 7 14 14 14 16 22 15 11 Final Capacity 25 | 8 15 15 15 15 25 25 25 5 Final Carried 25 | 2 15 15 15 15 20 25 12 5 Class Distribution -------------------- 55% | Mutant 30% | Scavenger-Tank 7% | Scavenger-Mutant 6% | Tank Dominant Class ---------------- Mutant | -10/Materials Mutant | -10/Mines Mutant | -10/Exiles Mutant | -9/Mines Scavenger-Mutant | -8/Materials Scavenger-Tank | -7/Factory Scavenger-Tank | -7/Lower Caves Scavenger-Tank | -7/Lower Caves Resources | -11 -10 -10 -10 -9 -8 -7 -7 -7 ----------- Run | Yrd Mat Min Exi Min Mat Fac Low Low Matter Collected 2376 | 240 443 73 . 36 70 711 373 430 Remotely . | . . . . . . . . . Salvage Created 1905 | 24 532 78 . 53 106 539 248 325 Parts 98 | . 25 8 . 1 10 27 13 14 Haulers Intercepted 1 | . 1 . . . . . . . Recyclers Shooed . | . . . . . . . . . Parts Field Recycled . | . . . . . . . . . Retrieved Matter . | . . . . . . . . . Parts Self-Destructed 14 | . . . . . . . 6 8 Prevented 12 | . . . . . . . 7 5 Parts Restored . | . . . . . . . . . Kills | -11 -10 -10 -10 -9 -8 -7 -7 -7 ------- Run | Yrd Mat Min Exi Min Mat Fac Low Low Combat Hostiles Destroyed 39 | . 9 3 . 1 2 9 6 9 Guns 30 | . 8 3 . 1 2 9 6 1 Cannons 2 | . . . . . . . . 2 AOE 6 | . . . . . . . . 6 Classes Destroyed 11 | 1 6 . . 1 1 1 1 . Worker 6 | . 2 1 . . . 3 . . Tunneler 2 | 1 1 . . . . . . . Hauler 1 | . 1 . . . . . . . Recycler 1 | . 1 . . . . . . . Operator 2 | . 1 . . . 1 . . . Swarmer 13 | . 3 3 . . . . 4 3 Grunt 17 | . 6 . . . . 5 . 6 Brawler 1 | . . . . 1 . . . . Sentry 4 | . . . . . 2 1 1 . Hunter 1 | . . . . . . . 1 . Programmer 3 | . . . . . . 3 . . Best Kill Streak 6 | 1 4 2 . 1 2 6 4 3 Combat Bots Only 5 | . 3 2 . 1 1 5 4 3 Max Kills in Single Turn 2 | 1 1 1 . 1 1 1 2 2 Gunslinging 1 | . . . . . . . 1 . Exploded 2 | . . . . . . . . 2 Melee . | . . . . . . . . . Uniques/NPCs Destroyed . | . . . . . . . . . Combat | -11 -10 -10 -10 -9 -8 -7 -7 -7 -------- Run | Yrd Mat Min Exi Min Mat Fac Low Low Hostile Shots Fired 246 | . 48 9 . 2 2 45 81 59 Missed 62 | . 9 3 . 1 . 16 20 13 Hits 184 | . 39 6 . 1 2 29 61 46 Melee 28 | . . . . . . . 6 22 Projectile 156 | . 39 6 . 1 2 29 55 24 Critical Strikes 14 | . 1 . . . . 1 2 10 Damage Taken 4146 | . 794 49 . 11 183 398 1059 1652 Core 836 | . 194 17 . . 14 47 90 474 Absorbed by Shields . | . . . . . . . . . Regen/Repaired (Parts) 16 | . . . . . . 16 . . Core Remaining (%) 72 | 100 . . . 21 97 . . . Volleys Fired 108 | 6 45 7 1 . . 16 14 19 Largest 3 | 2 2 2 1 . . 1 3 3 Hottest 140 | 90 90 90 100 . . 50 140 139 Shots Fired 263 | 12 88 13 1 2 3 53 39 52 Gun 233 | 12 88 13 . 2 3 53 31 31 Cannon 15 | . . . 1 . . . . 14 Launcher 15 | . . . . . . . 8 7 Special . | . . . . . . . . . Kinetic 18 | . . . . . . . . 18 Thermal 124 | 12 64 . 1 2 3 37 2 3 Explosive 15 | . . . . . . . 8 7 Electromagnetic 106 | . 24 13 . . . 16 29 24 Robot Hit Streak 15 | 4 8 9 . 4 2 15 7 11 Robot Miss Streak 5 | 3 3 2 . . 1 2 5 3 Penetration Max . | . . . . . . . . . Secondary Targets 5 | . 2 . . . . . 3 . Max Gunslinging Chain 2 | . 1 . . . . . 2 . Autonomous 44 | . . . . 2 3 37 2 . Shots Hit Robots 179 | 7 60 9 . 2 2 44 26 29 Core Hits 86 | 1 22 5 . 1 3 18 15 21 Critical Kills . | . . . . . . . . . Critical Parts Destroyed . | . . . . . . . . . Critical Strikes 5 | . 5 . . . . . . . Burn 3 | . 3 . . . . . . . Corrupt 2 | . 2 . . . . . . . Melee Attacks . | . . . . . . . . . Impact . | . . . . . . . . . Slashing . | . . . . . . . . . Piercing . | . . . . . . . . . Sneak Attacks . | . . . . . . . . . Combat Hostiles . | . . . . . . . . . Follow-up Attacks . | . . . . . . . . . Damage Inflicted 4441 | 84 940 117 . 61 257 1239 665 1078 Guns 2922 | 84 782 117 . 61 70 1194 350 264 Cannons 240 | . . . . . . . . 240 Explosions 1279 | . 158 . . . 187 45 315 574 Melee . | . . . . . . . . . Ramming . | . . . . . . . . . Kinetic 126 | . . . . . . . . 126 Thermal 2087 | 84 649 . . 61 150 1054 62 27 Explosive 996 | . . . . . 107 . 315 574 Electromagnetic 1232 | . 291 117 . . . 185 288 351 Impact . | . . . . . . . . . Slashing . | . . . . . . . . . Piercing . | . . . . . . . . . Highest Corruption 10 | . 10 10 . . . 1 1 9 Average Corruption 6 | . 9 10 . . . 1 1 9 Corruption Purged . | . . . . . . . . . Corruption Blocked . | . . . . . . . . . Effects 31 | . 3 16 . . . 1 1 10 Message Errors 8 | . . 5 . . . . . 3 Matter Fused 6 | . . 4 . . . 1 . 1 Heat Flow Errors 5 | . . 4 . . . . . 1 Energy Discharges 4 | . 2 1 . . . . 1 . Data Loss (minor) 4 | . 1 1 . . . . . 2 Misfires 1 | . . . . . . . . 1 Weapon Failures 3 | . . 1 . . . . . 2 Overload Shots . | . . . . . . . . . Overflow Damage 185 | . 14 . . . 50 . 51 70 Projectiles . | . . . . . . . . . Explosions 185 | . 14 . . . 50 . 51 70 Melee . | . . . . . . . . . Knockbacks . | . . . . . . . . . Impact . | . . . . . . . . . Kinetic . | . . . . . . . . . Secondary . | . . . . . . . . . Self-Inflicted Damage 495 | . 24 . . . 154 27 235 55 Shots 12 | . 1 . . . 2 1 6 2 Rammed . | . . . . . . . . . Targets Rammed . | . . . . . . . . . Kicked . | . . . . . . . . . Crushed . | . . . . . . . . . Highest Temperature 372 | 150 372 274 20 . . 236 188 142 Average Temperature 76 | 70 106 76 12 . . 53 65 53 Received Heat Transfer 714 | . 228 . . 6 9 159 159 153 Siege Activations . | . . . . . . . . . Martial Activations . | . . . . . . . . . Shielding Activations . | . . . . . . . . . Robots Disrupted . | . . . . . . . . . Combat Hostiles . | . . . . . . . . . Robots Corrupted . | . . . . . . . . . Combat Hostiles . | . . . . . . . . . Parts Fried 6 | . 2 . . . . . 3 1 Impact Corruptions . | . . . . . . . . . Robots Melted 1 | . 1 . . . . . . . Combat Hostiles 1 | . 1 . . . . . . . Parts Melted 6 | . 4 . . . . 2 . . Heat Transferred 3614 | 223 1724 . . 74 124 1321 74 74 Parts Sabotaged . | . . . . . . . . . Parts Stolen 5 | . . . . . . . 3 2 Parts Stripped . | . . . . . . . . . Power Chain Reactions 3 | . 2 . . . . 1 . . Alert | -11 -10 -10 -10 -9 -8 -7 -7 -7 ------- Run | Yrd Mat Min Exi Min Mat Fac Low Low Maximum Alert Level . | . . . . . . . . . Low Security (%) 100 | 100 100 100 . 100 100 100 . . Level 1 . | . . . . . . . . . Level 2 . | . . . . . . . . . Level 3 . | . . . . . . . . . Level 4 . | . . . . . . . . . Level 5 . | . . . . . . . . . High Security . | . . . . . . . . . Max Security . | . . . . . . . . . Peak Influence 154 | 5 81 65 . 30 79 154 . . Initial 7 | . . . . . 7 . . . Average 31 | . 30 9 . 1 40 58 . . Influence Increases 1180 | 5 289 90 . 30 122 274 140 230 Destroy 0b10 Robot/C 780 | . 180 60 . 20 40 180 120 180 Destroy 0b10 Robot/NC 60 | 5 30 5 . . 5 15 . . Destroy Leader 182 | . 42 10 . 10 20 60 20 20 Successful Hack 14 | . 14 . . . . . . . Disable Machine 60 | . 15 . . . 30 15 . . Destroy Structure 39 | . 8 . . . 27 4 . . Lose Combat Pursuer 45 | . . 15 . . . . . 30 Influence Decreases 1180 | 5 289 90 . 10 142 202 212 230 Entered New Map 40 | . . . . . 13 . 27 . Time Decay 920 | 5 239 90 . 10 129 182 125 140 Lost Part 220 | . 50 . . . . 20 60 90 Squads Dispatched 6 | . 2 . . . . 4 . . Investigation 2 | . 1 . . . . 1 . . Extermination 1 | . . . . . . 1 . . Reinforcement 2 | . 1 . . . . 1 . . Assault . | . . . . . . . . . Garrison 1 | . . . . . . 1 . . Intercept . | . . . . . . . . . Searches Triggered . | . . . . . . . . . Construction Impeded 1 | . . . . . . 1 . . Haulers Reinforced . | . . . . . . . . . Active Scanning Responses . | . . . . . . . . . Cargo Convoy Interrupts . | . . . . . . . . . Stealth | -11 -10 -10 -10 -9 -8 -7 -7 -7 --------- Run | Yrd Mat Min Exi Min Mat Fac Low Low Distress Signals 2 | . 2 . . . . . . . Communications Jammed . | . . . . . . . . . Distress Signals . | . . . . . . . . . Times Spotted 65 | . 16 3 . 2 3 9 17 15 Peak Tracking Total 9 | . 4 3 9 2 . 5 5 4 Tactical Retreats 3 | . . 1 . . . . . 2 Traps | -11 -10 -10 -10 -9 -8 -7 -7 -7 ------- Run | Yrd Mat Min Exi Min Mat Fac Low Low Traps Triggered . | . . . . . . . . . Indirectly . | . . . . . . . . . Trap Hack Attempts . | . . . . . . . . . Triggered . | . . . . . . . . . Disarmed . | . . . . . . . . . Reprogrammed . | . . . . . . . . . Reused . | . . . . . . . . . Traps Extracted . | . . . . . . . . . Installed . | . . . . . . . . . Triggered . | . . . . . . . . . Machines | -11 -10 -10 -10 -9 -8 -7 -7 -7 ---------- Run | Yrd Mat Min Exi Min Mat Fac Low Low Machines Disabled 5 | . 1 . 1 . 2 1 . . Max in Single Turn 2 | . 1 . 1 . 2 1 . . Machines Repaired . | . . . . . . . . . Machines Dismantled . | . . . . . . . . . Machines Sabotaged . | . . . . . . . . . Overloaded Fab Kills . | . . . . . . . . . Hacking | -11 -10 -10 -10 -9 -8 -7 -7 -7 --------- Run | Yrd Mat Min Exi Min Mat Fac Low Low Machines Accessed 10 | . 2 . 2 . 1 5 . . Terminals 6 | . 2 . . . 1 3 . . Fabricators . | . . . . . . . . . Repair Stations 1 | . . . . . . 1 . . Recycling Units . | . . . . . . . . . Scanalyzers . | . . . . . . . . . Garrison Access 1 | . . . . . . 1 . . Total Hacks 18 | . 3 . 2 . 1 12 . . Successful 8 | . 3 . 2 . . 3 . . Failed 10 | . . . . . 1 9 . . Catastrophic 1 | . . . . . 1 . . . Database Lockouts . | . . . . . . . . . Manual 16 | . 3 . 1 . 1 11 . . Terminals 12 | . 3 . . . 1 8 . . Fabricators . | . . . . . . . . . Repair Stations 2 | . . . . . . 2 . . Recycling Units . | . . . . . . . . . Scanalyzers . | . . . . . . . . . Garrison Access 2 | . . . . . . 2 . . Terminal Hacks 3 | . 1 . 2 . . . . . Record 1 | . . . 1 . . . . . Robot Analysis 1 | . 1 . . . . . . . Proto ID Catalog 1 | . . . 1 . . . . . Fabricator Hacks . | . . . . . . . . . Repair Station Hacks . | . . . . . . . . . Recycling Unit Hacks . | . . . . . . . . . Scanalyzer . | . . . . . . . . . Garrison Access Hacks . | . . . . . . . . . Unauthorized Hacks 5 | . 2 . . . . 3 . . Terminals 4 | . 2 . . . . 2 . . Botnet 4 | . 2 . . . . 2 . . Fabricators . | . . . . . . . . . Repair Stations 1 | . . . . . . 1 . . Patch 1 | . . . . . . 1 . . Recycling Units . | . . . . . . . . . Scanalyzers . | . . . . . . . . . Garrison Access . | . . . . . . . . . Data Cores Recovered 2 | . 1 . . . 1 . . . Used 1 | . 1 . . . . . . . Hacking Detections 7 | . 2 . . . 1 4 . . Full Trace Events . | . . . . . . . . . Feedback Events . | . . . . . . . . . Feedback Blocked . | . . . . . . . . . Robot Schematics Acquired . | . . . . . . . . . Robots Built . | . . . . . . . . . Authchips . | . . . . . . . . . Time . | . . . . . . . . . Total Robot Build Rating . | . . . . . . . . . Part Schematics Acquired . | . . . . . . . . . Parts Built . | . . . . . . . . . Authchips . | . . . . . . . . . Time . | . . . . . . . . . Total Part Build Rating . | . . . . . . . . . Part Studies Acquired . | . . . . . . . . . Parts Repaired . | . . . . . . . . . Time . | . . . . . . . . . Parts Recycled . | . . . . . . . . . Recycled Matter . | . . . . . . . . . Retrieved Matter . | . . . . . . . . . Retrieved Components . | . . . . . . . . . Parts Scanalyzed . | . . . . . . . . . Part Schematics Acquired . | . . . . . . . . . Parts Damaged . | . . . . . . . . . Bothacking | -11 -10 -10 -10 -9 -8 -7 -7 -7 ------------ Run | Yrd Mat Min Exi Min Mat Fac Low Low Used RIF Installer . | . . . . . . . . . Robots Hacked . | . . . . . . . . . Non-combat . | . . . . . . . . . Combat . | . . . . . . . . . Robot Hacks Applied . | . . . . . . . . . Relay Couplers Released . | . . . . . . . . . Fabnet Peak Effective % . | . . . . . . . . . Robots Rewired . | . . . . . . . . . Allies Hacked . | . . . . . . . . . Hacks Repelled . | . . . . . . . . . Allies | -11 -10 -10 -10 -9 -8 -7 -7 -7 -------- Run | Yrd Mat Min Exi Min Mat Fac Low Low Total Allies . | . . . . . . . . . Largest Group . | . . . . . . . . . Highest-Rated Group . | . . . . . . . . . Highest-Rated Ally . | . . . . . . . . . Total Orders . | . . . . . . . . . Ally Attacks . | . . . . . . . . . Total Damage . | . . . . . . . . . Kills . | . . . . . . . . . Allies Corrupted . | . . . . . . . . . Allies Melted . | . . . . . . . . . X0-1V1 Amusement Gains 185 | . 35 . 60 . . 5 15 70 Good Acts 14 | . 1 4 . . 1 4 3 1 Bad Acts 9 | . 2 1 . . . 1 . 5 Intel | -11 -10 -10 -10 -9 -8 -7 -7 -7 ------- Run | Yrd Mat Min Exi Min Mat Fac Low Low Active Infowar (turns) 1640 | . . . . . 248 570 475 347 Optics 1392 | . . . . . . 570 475 347 Seismic 832 | . . . . . 248 570 14 . Robot Analysis Total 1 | . 1 . . . . . . . Derelict Logs Recovered 4 | . . 1 . . . . 2 1 Drone Launches . | . . . . . . . . . Drone Recoveries . | . . . . . . . . . Exploration | -11 -10 -10 -10 -9 -8 -7 -7 -7 ------------- Run | Yrd Mat Min Exi Min Mat Fac Low Low Turns Passed 3520 | 73 682 510 461 126 273 570 475 350 Spaces Moved 2651 | 52 502 433 427 117 203 397 324 196 Core 15 | 5 3 . . . . . . 7 Treads . | . . . . . . . . . Legs . | . . . . . . . . . Wheels 2636 | 47 499 433 427 117 203 397 324 189 Hover . | . . . . . . . . . Flight . | . . . . . . . . . Fastest Speed 50 | 50 90 105 105 105 86 116 116 50 Average Speed 109 | 85 97 105 105 105 114 119 123 122 Slowest Speed 350 | 90 350 105 105 105 116 135 150 140 Overloaded Moves . | . . . . . . . . . Propulsion Burnouts . | . . . . . . . . . Robots Hopped . | . . . . . . . . . Potential Cave-ins 4 | . 4 . . . . . . . Cave-ins Triggered 1 | . 1 . . . . . . . Exploration Rate (%) 43 | 3 73 85 70 34 19 7 66 35 Regions Visited 8 Branch Regions 5 Pre-discovered Areas 4 | . . 1 1 . . . 2 . Known Exits Taken 1 | . . 1 . . . . . . Unknown Exits Taken 7 | 1 1 . 1 1 1 1 1 . Scrap Searched 5 | . . 1 . 1 . . . 3 Spaces Dug . | . . . . . . . . . Terrain Destroyed 155 | . 4 . . . 39 4 48 60 Melee . | . . . . . . . . . Projectile 2 | . . . . . . 2 . . AOE 153 | . 4 . . . 39 2 48 60 Terrain Rammed . | . . . . . . . . . Walls Destroyed . | . . . . . . . . . Machines Disabled . | . . . . . . . . . Actions | -11 -10 -10 -10 -9 -8 -7 -7 -7 --------- Run | Yrd Mat Min Exi Min Mat Fac Low Low Total 3058 | 65 609 474 439 120 241 478 369 263 Wait 129 | . 13 31 1 1 27 25 13 18 Move 2642 | 51 500 432 426 116 202 396 323 196 Hop . | . . . . . . . . . Pick Up 59 | 2 22 2 3 1 4 11 3 11 Fast Attach 24 | 6 5 . 1 . 5 4 1 2 Attach 35 | . 4 2 1 1 1 6 11 9 Detach 13 | . 4 . . . 2 6 . 1 Swap 16 | . 5 . . . . 5 2 4 Drop 31 | . 10 . 6 1 . 9 2 3 Fire 108 | 6 45 7 1 . . 16 14 19 Melee . | . . . . . . . . . Ram . | . . . . . . . . . Kick . | . . . . . . . . . Crush . | . . . . . . . . . Escape Stasis 1 | . 1 . . . . . . . Rewire . | . . . . . . . . . Trap . | . . . . . . . . . Miscellaneous . | . . . . . . . . . Route ------- -11/Scrapyard -10/Materials (discovered 4 exits: *Mat x2 / [*Min] / [*Sub]) -10/Mines (discovered 3 exits: *Mat x2 / *Exi) -10/Exiles -9/Mines -8/Materials -7/Factory (discovered 2 exits: Fac / [*Low]) -7/Lower Caves -7/Lower Caves History --------- Turn | Location | Event 10 | -11/Scrapyard | Discovered new exit (range 16) 74 | -11/Scrapyard | Entered Materials 149 | -10/Materials | Discovered new exit (range 6) 326 | -10/Materials | Build established: Mutant 607 | -10/Materials | Discovered new exit (range 9) 615 | -10/Materials | Prayed at D.C.S.S. Altar Unit 633 | -10/Materials | Discovered new exit (range 9) 654 | -10/Materials | X0-1V1 vaporized surrounding terrain (radius 15) 668 | -10/Materials | Core integrity fell below 50% 690 | -10/Materials | Crushed by falling debris 709 | -10/Materials | System corruption reached 10% 721 | -10/Materials | Lost 4 parts (3n1u) 746 | -10/Materials | Discovered new exit (range 7) 756 | -10/Materials | Entered Mines 781 | -10/Mines | Identified exit to Materials 781 | -10/Mines | X0-1V1 revealed exit location to -9/Materials 812 | -10/Mines | Discovered exit to Materials (range 14) 961 | -10/Mines | Core integrity fell below 20% 1181 | -10/Mines | Melee accuracy permanently improved by X0-1V1 (+7%; -70 max core) 1186 | -10/Mines | Identified exit to Exiles 1186 | -10/Mines | X0-1V1 revealed exit location to -10/Exiles 1262 | -10/Mines | Deemed a non-threat by the Exiles lab entrance 1266 | -10/Mines | Entered Exiles 1293 | -10/Exiles | Met 8R-AWN 1310 | -10/Exiles | Met EX-HEX 1342 | -10/Exiles | Met EX-BIN 1355 | -10/Exiles | Aligned with FarCom system 1356 | -10/Exiles | Given EX-Vault access code 1417 | -10/Exiles | Met EX-DEC 1437 | -10/Exiles | Learned location of Zion (-7) 1536 | -10/Exiles | Opened EX-Vault 1545 | -10/Exiles | Found YOLO Cannon 1567 | -10/Exiles | Warned to stay clear of 0b10 Research branches 1621 | -10/Exiles | Found AWS/Thermal 1624 | -10/Exiles | Found Chronowheel 1700 | -10/Exiles | Attacked by the Exiles 1719 | -10/Exiles | Discovered new exit (range 10) 1727 | -10/Exiles | Stole three prototypes: YOLO Cannon, Chronowheel, AWS/Thermal 1727 | -10/Exiles | Entered Mines 1844 | -9/Mines | Discovered new exit (range 9) 1852 | -9/Mines | Received a Rocket Launcher from a helpful Derelict 1853 | -9/Mines | Entered Materials 1853 | -8/Materials | Evolved 4 slots: Propulsion x1, Utility x3 1995 | -8/Materials | X0-1V1 foreshadows a heat wave 2111 | -8/Materials | Discovered new exit (range 5) 2126 | -8/Materials | Entered Factory 2126 | -7/Factory | Evolved 2 slots: Utility x1, Weapon x1 2130 | -7/Factory | Identified exit to Factory 2130 | -7/Factory | X0-1V1 revealed exit location to -6/Factory 2133 | -7/Factory | Matter capacity permanently improved by X0-1V1 (+500; -250 max core) 2385 | -7/Factory | Garrison activated, responded to threat 2573 | -7/Factory | X0-1V1 announced a LAN party 2641 | -7/Factory | Discovered new exit (range 14) 2696 | -7/Factory | Entered Lower Caves 2698 | -7/Lower Caves | Encountered a Master Thief 2698 | -7/Lower Caves | Encountered a Master Thief 2698 | -7/Lower Caves | Encountered a Master Thief 2698 | -7/Lower Caves | AWS/Thermal stolen by Master Thief 2699 | -7/Lower Caves | YOLO Cannon stolen by Master Thief 2706 | -7/Lower Caves | Chronowheel stolen by Master Thief 2814 | -7/Lower Caves | Build established: Scavenger-Tank 2886 | -7/Lower Caves | Attracted the attention of an 0b10 checkpoint 3006 | -7/Lower Caves | Lost 4 parts (1p1n2u) 3149 | -7/Lower Caves | Discovered new exit (range 17) 3153 | -7/Lower Caves | Attacked by a faux Warlord 3171 | -7/Lower Caves | Entered another Lower Caves area 3182 | -7/Lower Caves | Core integrity permanently improved by X0-1V1 (+200) 3190 | -7/Lower Caves | X0-1V1 sent hostile G-47 Trooper (x3) 3197 | -7/Lower Caves | Lost 5 parts (1n2u2w) 3202 | -7/Lower Caves | Learned Factory terminal intel 3336 | -7/Lower Caves | X0-1V1 sent you into danger 3412 | -7/Lower Caves | Lost 3 parts (1n2w) 3505 | -7/Lower Caves | Encountered a Master Thief 3505 | -7/Lower Caves | Encountered a Master Thief 3506 | -7/Lower Caves | Encountered a Master Thief 3506 | -7/Lower Caves | Encountered a Master Thief 3512 | -7/Lower Caves | Core integrity fell below 50% 3512 | -7/Lower Caves | Energy Filter stolen by Master Thief 3514 | -7/Lower Caves | Core integrity fell below 20% 3518 | -7/Lower Caves | Released all parts (4) 3521 | -7/Lower Caves | Destroyed by R7-KVU(f) with Centrium Greatsword Last Messages --------------- 03509_ Assault Rifle destroyed. 03509_ 38-J23(f) follow-up attacks with Prototype Slashing Weapon. 03509_ Lgt. Nuclear Core destroyed. 03509_ Wheel destroyed. 03509_ X0-1V1's Piety Tracker ripped off. 03511_ Rocket Launcher severed. 03511_ 38-J23(f) follow-up attacks with Prototype Slashing Weapon. 03512_ Energy Filter stolen. 03513_ Wheel destroyed. 03514_ Hacking Suite destroyed. 03515_ X0-1V1 is amused. 03516_ 38-J23(f) follow-up attacks with Prototype Slashing Weapon. 03516_ Wheel destroyed. 03517_ Hvy. Armor Plating destroyed. 03517_ Gauss Rifle severed. 03518_ Released Adv. Visual Processing Unit. 03518_ Released Huge Storage Unit. 03518_ Released Heat Sink. 03518_ Released Wheel. 03521_ X0-1V1 giggles madly! Map ----- +----------------------------------------------------+ | ?????????????????????????????????????????????????? | | ?????????????????????????????????????????????????? | | ?????????????????????????????????????????????????? | | ?????????????????????????????????????????????????? | | ?????????????????????????????????????????????????? | | ?????????????????????????????????????????????????? | | ?????????????????????????????????????????????????? | | ????????????????????????????????????? ???????? | | ????????????????????????????????????? #??????? | | ???????????????????????????????????? ##?????? | | ???????????????????????????????????? ##????? | | ???????????????????????????????????? ##???? | | ???????????????????????????????????? ###?? | | ???????????????????????????????????# ?? | | ??????????????????????????????????? ? ??? | | ??????????????????????????????????? # #???? | | ?????????????????????????????????#? # #???? | | ????????????????? ?????????????? # ?????? | | ????????????????# ??????????### ???????? | | ?????????????#### ?????#### #????????? | | ?????????????# ##### #?????????? | | ?????????????# = #???????##### | | ?????????????????? !]! #??##????# | | ??????????????????#???????## f*!/!! #??# #??# | | ??????????????????# #### f ![! #??# ## ## | | ??????????????????# @f #### #??# ?# | | ??????????????????# # ##?## ##???# #?## | | ?????????????????????########??# ##???# ### | | ???????????????????????????????# ##???# # | | ???????????????????????????????# ##??# # # | | ???????????????????????????????# ##?# #?# # | | ???????????????????????????????## ### #?# !# | | ????????????????????????????????## ## ### # | | ?????????????????????????????????## | | ??????????????????????????????????## | | ???????????????????????????????????# ! ## | | ???????????????????????????????????######## ###? | | ??????????????????????????????????????????#####??? | | ?????????????????????????????????????????????????? | | ?????????????????????????????????????????????????# | | ????????????????????????????????????????????????? | | ?????????????????????????????????????????????????? | | ?????????????????????????????????????????????????? | | ?????????????????????????????????????????????????? | | ?????????????????????????????????????????????????? | | ?????????????????????????????????????????????????? | | ?????????????????????????????????????????????????? | | ?????????????????????????????????????????????????? | | ?????????????????????????????????????????????????? | | ?????????????????????????????????????????????????? | +----------------------------------------------------+ Best States ------------- Heat Dissipation 44 Energy Generation 48 Energy Capacity 275 Matter Stores 1236 Matter Capacity 1300 Sight Range 20 Terrain Scan Density 10 Armor Coverage 375 Evasion (%) 50 Offensive Hacking 10 Item Schematics ----------------- None Robot Schematics ------------------ None Fabricated ------------ Nothing Repaired ---------- Nothing Studied --------- None Alien Tech Used ----------------- None Achievements -------------- Consequences Challenges ------------ None Game ------ Seed BiomechanicalWeightPurifier Manual? 0 Play Time 00:31:32 Cumulative 204.1 hours Start 2026.07.23 @ 20:59:34 End 2026.07.23 @ 21:31:37 Sessions 5 Manual Loads 0 Difficulty Rogue Special Mode None Game No. 264 Rogue 264 Adventurer 0 Explorer 0 Win Type - Total 4 Types 4/0/0/0/0/0/0/0/0/0 Lore% 79 Gallery% 61 Achievement% 49 Wizard Run 0 Options --------- Layout 0 ASCII 0 Keyboard 0 Movement Numpad Keybinds 0 Fullscreen 1 Font 18/Terminus Map View 76x50 Zoom Use 0% Tactical HUD 1 Map Filters NONE Filters NONE Steam 1 RUN: 13d70107-6456-497c-b4b1-b6413313c1c7